bitfinex-derivatives/quotes_ETHF0:USTF0_20240901
["timestamp","ask_amount","ask_price","bid_price","bid_amount"]
[1725199360023,4.90479125,2465.1,2464.7,0.3731]
[1725199360219,0.4057,2465.0,2464.7,0.3731]
[1725199360420,4.90479125,2465.1,2464.4,3.2078]
[1725199360637,4.50415665,2464.9,2464.7,3.2078]
[1725199360820,0.00608199,2465.2,2464.8,0.77882]
[1725199361119,0.00608199,2465.2,2464.8,5.58949164]
[1725199361424,0.41175199,2465.2,2464.8,0.3731]
[1725199361625,0.00608199,2465.2,2464.8,0.3731]
[1725199361931,0.00608199,2465.2,2464.9,0.40571]
[1725199362117,0.00608199,2465.2,2464.9,5.6248199]
[1725199362426,0.00608199,2465.2,2464.9,0.3647]
[1725199363127,0.00608199,2465.2,2465.0,3.61348]
[1725199363432,0.00608199,2465.2,2465.0,3.2078]
[1725199364919,0.00608199,2465.2,2465.0,7.2646]
[1725199365119,0.00608199,2465.2,2465.0,3.2078]
[1725199366319,0.00608199,2465.2,2464.9,0.3647]
[1725199367417,0.00608199,2465.2,2465.0,0.40569]
[1725199367726,0.00608199,2465.2,2465.1,0.40568]
[1725199368131,0.00608199,2465.2,2465.1,4.46248]
[1725199368320,0.00608199,2465.2,2465.1,0.40568]
[1725199368516,0.00608199,2465.2,2465.1,4.46248]
[1725199368722,0.00608199,2465.2,2465.1,10.46248]
[1725199368922,0.40554,2466.0,2465.1,15.3395735]
[1725199369228,4.60992102,2465.9,2465.4,3.2078]
[1725199369424,4.60992102,2465.9,2465.6,0.4056]
[1725199369727,0.40552,2466.1,2465.6,0.4056]
[1725199369728,4.59660258,2466.0,2465.6,0.40558]
[1725199369929,0.00608199,2466.0,2465.6,0.40558]
[1725199370126,0.00608199,2466.0,2465.5,0.37618199]
[1725199370333,0.4056,2465.6,2465.5,0.00608199]
[1725199370729,8.97465497,2465.6,2465.5,0.00608199]
[1725199370933,8.56905497,2465.6,2465.5,0.00608199]
[1725199371136,8.97465497,2465.6,2465.5,0.00608199]
[1725199372135,3.2078,2465.8,2465.5,0.00608199]
[1725199372537,0.00608199,2466.0,2465.5,0.00608199]
[1725199372732,0.00608199,2466.0,2465.5,0.37528199]
[1725199372733,0.40556,2465.8,2465.5,0.37528199]
[1725199373041,4.6873475,2465.7,2465.5,0.37528199]
[1725199373243,0.4056,2465.6,2465.5,0.00608199]
[1725199373641,4.54518159,2465.6,2465.5,0.00608199]
[1725199373843,4.91708159,2465.6,2465.5,0.00608199]
[1725199375554,0.08358159,2465.6,2465.5,0.00608199]
[1725199375751,0.40557,2465.8,2465.5,0.00608199]
[1725199376353,4.9873132,2465.9,2465.5,0.41169199]
[1725199376648,0.40557,2465.8,2465.5,0.00608199]
[1725199377646,4.9873132,2465.9,2465.5,0.41169199]
[1725199377847,0.40557,2465.8,2465.5,0.00608199]
[1725199378048,4.9873132,2465.9,2465.5,0.41169199]
[1725199378550,0.40556,2465.8,2465.5,0.41169199]
[1725199378855,0.40556,2465.8,2465.5,0.00608199]
[1725199379446,4.9873132,2465.9,2465.5,0.41169199]
[1725199379650,4.5817632,2465.9,2465.6,0.76539]
[1725199379953,4.9873132,2465.9,2465.6,0.3598]
[1725199380156,0.40556,2465.8,2465.6,0.3598]
[1725199380456,0.40557,2465.8,2465.6,0.3598]
[1725199380757,0.4056,2465.6,2465.5,0.00608199]
[1725199381257,12.2095,2465.6,2465.5,0.00608199]
[1725199381560,0.40571,2465.0,2464.5,3.2078]
[1725199381755,0.40568,2465.1,2464.7,0.40574]
[1725199381948,8.36642521,2465.6,2464.6,0.3893]
[1725199381949,4.95572,2465.6,2464.9,0.40571]
[1725199382157,4.95572,2465.6,2464.6,5.65798402]
[1725199382158,4.30870809,2465.3,2464.8,3.2078]
[1725199382350,5.36419889,2465.5,2464.6,0.79506]
[1725199382548,0.4057,2465.0,2464.6,0.3893]
[1725199382751,0.40571,2464.9,2464.6,0.3893]
[1725199382950,0.4057,2465.0,2464.6,0.3893]
[1725199383150,3.2078,2465.3,2464.6,0.3893]
[1725199383356,0.40572,2464.9,2464.5,3.2078]
[1725199383760,0.40572,2464.9,2464.4,0.3818]
[1725199383761,4.72368654,2464.9,2464.4,0.3818]
[1725199383956,0.63639302,2465.2,2464.5,0.40577]
[1725199384157,0.3548,2465.2,2464.4,0.3818]
[1725199384356,4.6186192,2464.8,2464.4,0.3818]
[1725199384555,4.6186192,2465.1,2464.3,0.3667]
[1725199384757,4.63988474,2464.7,2463.8,0.3818]
[1725199384957,3.2078,2464.4,2463.8,0.3818]
[1725199385160,0.3636,2464.3,2463.8,0.3818]
[1725199385461,0.40584,2464.2,2463.8,0.3818]
[1725199385665,0.40588,2464.0,2463.6,0.3667]
[1725199386669,8.05024109,2464.1,2463.6,0.3667]
[1725199386855,0.40586,2464.0,2463.6,0.3667]
[1725199387054,0.40588,2463.9,2463.5,0.3818]
[1725199387255,0.40591,2463.8,2463.5,0.3818]
[1725199387658,0.3791,2464.0,2463.5,0.3818]
[1725199388364,0.78496,2464.0,2463.5,0.3818]
[1725199388668,4.50898734,2463.9,2463.5,0.3818]
[1725199388865,3.2078,2463.8,2462.7,3.2078]
[1725199389059,3.2078,2463.3,2462.7,3.2078]
[1725199389261,3.2078,2463.3,2462.5,0.3722]
[1725199389262,0.41208199,2463.2,2462.5,0.3722]
[1725199389464,4.41521569,2463.2,2462.6,3.2078]
[1725199389657,4.06121569,2463.2,2462.6,3.61389]
[1725199389857,4.06121569,2463.2,2462.5,0.3722]
[1725199390062,0.40602,2463.1,2462.5,0.3722]
[1725199390265,0.40602,2463.1,2462.3,3.589]
[1725199390266,0.76003,2463.0,2462.3,3.589]
[1725199390467,3.2078,2462.7,2461.9,3.2078]
[1725199390866,3.61395,2462.3,2461.4,3.2078]
[1725199391165,3.61395,2462.3,2461.2,0.7389]
[1725199391166,3.2078,2461.9,2461.2,0.7389]
[1725199391467,0.00609446,2461.8,2461.2,0.7389]
[1725199391659,4.25252565,2461.8,2461.2,0.7389]
[1725199392165,3.2078,2461.5,2460.6,3.2078]
[1725199392462,0.4063,2461.3,2460.6,3.2078]
[1725199392967,0.4063,2461.3,2460.1,14.10835968]
[1725199392968,4.71661041,2461.2,2460.9,3.2078]
[1725199393268,0.00609446,2461.8,2460.9,3.2078]
[1725199393458,0.00609446,2461.8,2461.1,0.40634]
[1725199393661,4.64463948,2461.7,2461.2,3.2078]
[1725199394664,4.64463948,2461.7,2461.2,3.61412]
[1725199394867,0.00609446,2461.8,2461.3,0.4063]
[1725199395169,0.00609446,2461.8,2461.2,3.61412]
[1725199395371,0.00609446,2461.8,2461.2,3.2078]
[1725199395669,4.58514758,2461.7,2461.5,0.86249598]
[1725199396076,4.58514758,2461.7,2461.6,12.4]
[1725199396572,0.00609446,2461.8,2461.7,0.40624]
[1725199396781,0.00609446,2461.8,2461.7,1.26873598]
[1725199397072,0.00609446,2461.8,2461.7,13.26249598]
[1725199398865,0.00609446,2461.8,2461.7,17.32489598]
[1725199399679,0.00609446,2461.8,2461.7,13.26249598]
[1725199400273,4.47471446,2461.8,2461.7,13.26249598]
[1725199400465,8.37645219,2461.8,2461.7,13.26249598]
[1725199400661,8.78267219,2461.8,2461.7,13.26249598]
[1725199400875,14.78267219,2461.8,2461.7,13.26249598]
[1725199401676,14.78267219,2461.8,2461.7,9.98786212]
[1725199401977,14.78267219,2461.8,2461.7,7.86271212]
[1725199402475,0.00609446,2461.8,2461.7,7.86271212]
[1725199402974,4.06849446,2461.8,2461.7,7.86271212]
[1725199403169,8.54979528,2461.8,2461.7,7.86271212]
[1725199403364,4.48739528,2461.8,2461.7,7.86271212]
[1725199403766,0.00609446,2461.8,2461.7,11.92511212]
[1725199403961,0.00609446,2461.8,2461.7,7.86271212]
[1725199404567,0.00609446,2461.8,2461.7,11.92511212]
[1725199404771,0.00609446,2461.8,2461.7,12.70005212]
[1725199404977,0.00609446,2461.8,2461.7,12.29381212]
[1725199405276,0.00609446,2461.8,2461.7,12.70005212]
[1725199405778,0.00609446,2461.8,2461.7,13.07695212]
[1725199405970,0.00609446,2461.8,2461.7,12.67071212]
[1725199406378,0.00609446,2461.8,2461.7,8.60831212]
[1725199407174,0.00609446,2461.8,2461.7,7.86271212]
[1725199407674,0.41231446,2461.8,2461.7,7.86271212]
[1725199407876,14.77729126,2461.8,2461.7,7.86271212]
[1725199409470,4.30867126,2461.8,2461.7,7.86271212]
[1725199409669,0.00609446,2461.8,2461.7,7.86271212]
[1725199410077,0.00609446,2461.8,2461.7,11.92511212]
[1725199410583,0.00609446,2461.8,2461.7,12.33135212]
[1725199410873,0.00609446,2461.8,2461.7,11.92511212]
[1725199411081,3.2078,2462.2,2461.7,11.92511212]
[1725199411285,3.2078,2462.2,2461.8,3.2078]
[1725199411485,3.2078,2462.2,2461.8,3.5963]
[1725199411678,3.2078,2462.2,2461.8,4.00252]
[1725199411982,3.2078,2462.2,2461.8,7.6579]
[1725199412179,7.27549446,2462.2,2462.0,7.86271212]
[1725199412381,4.81105913,2462.1,2462.0,7.86271212]
[1725199412772,14.87265913,2462.1,2462.0,7.86271212]
[1725199412974,8.87265913,2462.1,2462.0,7.86271212]
[1725199413479,3.21389446,2462.2,2462.0,7.86271212]
[1725199413782,3.21389446,2462.2,2462.0,11.92431212]
[1725199413976,4.28792834,2462.1,2462.0,7.86271212]
[1725199414683,0.00609446,2462.2,2462.0,7.86271212]
[1725199415178,0.00609446,2462.2,2462.1,3.16715699]
[1725199415482,4.23139551,2462.2,2462.1,3.16715699]
[1725199415685,8.29299551,2462.2,2462.1,3.16715699]
[1725199415982,4.23139551,2462.2,2462.1,3.16715699]
[1725199416486,0.00609446,2462.2,2462.1,3.16715699]
[1725199419385,5.00181672,2462.2,2462.1,3.16715699]
[1725199420480,9.06341672,2462.2,2462.1,3.16715699]
[1725199420789,4.59565672,2462.2,2462.1,3.16715699]
[1725199420982,3.2078,2462.9,2462.1,16.43655699]
[1725199421183,3.2078,2462.9,2462.5,3.16715699]
[1725199421384,3.2078,2462.9,2462.6,0.3537]
[1725199422274,0.00609446,2463.0,2462.7,3.16715699]
[1725199422578,4.95565227,2462.8,2462.7,3.16715699]
[1725199422792,4.95565227,2462.8,2462.7,2.23489699]
[1725199422793,9.17860227,2462.8,2462.7,2.23489699]
[1725199423081,9.17860227,2462.8,2461.4,3.2078]
[1725199423082,14.28375,2462.8,2461.5,0.7632]
[1725199423276,0.4062,2462.0,2461.5,0.7632]
[1725199423672,4.93791732,2461.9,2461.5,0.7632]
[1725199424082,8.99951732,2461.9,2461.5,0.7632]
[1725199425177,16.01503732,2461.9,2461.5,0.3732]
[1725199425384,16.01503732,2461.9,2461.8,4.46e-06]
[1725199426688,17.03055732,2461.9,2461.8,4.46e-06]
[1725199427374,17.03055732,2461.9,2460.6,0.39]
[1725199427375,0.4064,2460.7,2460.6,0.39]
[1725199427578,8.7861853,2461.9,2460.6,0.39]
[1725199427880,44.0078,2461.9,2461.3,3.2078]
[1725199428083,44.0078,2461.9,2461.0,3.2078]
[1725199428084,5.06666175,2461.5,2461.0,3.2078]
[1725199428289,0.00609446,2461.5,2461.0,3.21389446]
[1725199428490,4.66038175,2461.4,2461.0,3.21389446]
[1725199428682,0.4063,2461.3,2461.0,3.21389446]
[1725199428880,4.66038175,2461.4,2461.0,3.21389446]
[1725199429187,0.40634,2461.1,2461.0,0.00609446]
[1725199429580,9.04436197,2461.1,2461.0,0.00609446]
[1725199430482,15.04436197,2461.1,2461.0,0.00609446]
[1725199431594,16.09103995,2461.1,2461.0,0.00609446]
[1725199431780,16.62852383,2461.1,2461.0,0.00609446]
[1725199431985,0.40651,2460.1,2459.7,3.2078]
[1725199432186,0.4065,2460.2,2459.7,3.2078]
[1725199432387,4.52965377,2460.0,2459.8,0.3703]
[1725199432689,4.25808359,2460.4,2459.9,0.40654]
[1725199432690,4.52965377,2460.1,2459.9,0.40654]
[1725199432901,1.72805377,2460.1,2460.0,7.67912]
[1725199433098,2.62570898,2461.2,2460.6,0.40642]
[1725199433099,1.05028359,2461.1,2460.6,0.40642]
[1725199433286,1.05028359,2461.2,2460.7,3.2078]
[1725199433605,4.52240365,2460.9,2460.2,3.2078]
[1725199433887,3.20502506,2461.2,2460.5,3.2078]
[1725199434295,4.42095202,2461.0,2460.7,0.4064]
[1725199434481,4.42704648,2461.1,2460.8,0.40638]
[1725199434682,5.47733007,2461.1,2460.6,0.00609446]
[1725199434887,1.05637805,2461.1,2460.6,0.00609446]
[1725199435097,4.24482307,2461.0,2460.7,0.4064]
[1725199435299,4.24482307,2461.0,2460.8,3.2078]
[1725199435482,1.05637805,2461.1,2460.8,3.2078]
[1725199435684,0.00609446,2461.1,2460.8,7.271]
[1725199435887,0.00609446,2461.1,2460.8,3.61418]
[1725199436090,0.00609446,2461.1,2460.9,0.40636]
[1725199436388,0.00609446,2461.1,2460.7,0.3773]
[1725199436688,5.6479456,2461.0,2460.8,0.3611]
[1725199437588,4.59766201,2461.0,2460.8,0.3611]
[1725199437990,5.00402201,2461.0,2460.8,0.3611]
[1725199438390,0.40637,2460.9,2460.8,0.3611]
[1725199439302,0.40637,2460.9,2460.7,0.3773]
[1725199439801,5.6479456,2461.0,2460.7,0.3773]
[1725199439802,4.33064148,2460.8,2460.7,0.3773]
[1725199440205,5.39866569,2460.9,2460.6,0.00609446]
[1725199440394,0.4064,2460.7,2460.6,0.00609446]
[1725199440701,4.66585214,2460.7,2459.8,3.9503]
[1725199441003,1.45895441,2460.6,2460.1,0.4065]
[1725199441196,1.05252441,2460.6,2459.8,3.9503]
[1725199441393,4.66585214,2460.5,2460.0,0.40651]
[1725199441700,4.66585214,2460.5,2460.1,0.4065]
[1725199441999,1.57878661,2460.7,2460.1,17.00155557]
[1725199442000,1.05252441,2460.7,2460.1,17.00155557]
[1725199442191,3.2078,2460.8,2460.7,0.4064]
[1725199442587,3.2078,2460.8,2460.3,0.3654]
[1725199442792,0.6,2460.7,2460.5,0.40643]
[1725199443003,0.6,2460.7,2460.6,0.3651]
[1725199444195,0.6,2460.7,2460.3,0.3654]
[1725199444589,4.50120812,2460.6,2460.3,0.3654]
[1725199444993,0.6,2460.7,2460.3,0.3654]
[1725199445393,4.30512912,2460.6,2460.3,0.3654]
[1725199445698,0.6,2460.7,2460.6,0.40642]
[1725199446093,0.00609446,2461.1,2461.0,0.40635]
[1725199446603,0.00609446,2461.1,2461.0,4.46955]
[1725199447596,0.00609446,2461.1,2460.9,3.2078]
[1725199448107,0.00609446,2461.1,2460.9,3.61416]
[1725199448292,0.00609446,2461.1,2461.0,0.40635]
[1725199448801,1.57878661,2461.6,2461.0,10.0632]
[1725199448802,1.05252441,2461.6,2461.0,10.0632]
[1725199449002,4.66656441,2461.7,2461.3,0.4063]
[1725199449387,4.26032441,2461.7,2461.4,0.40628]
[1725199449588,1.05252441,2461.9,2461.6,0.40626]
[1725199449895,1.57878661,2462.0,2461.7,0.40624]
[1725199449896,1.05861887,2462.0,2461.7,0.40624]
[1725199450199,1.05861887,2462.0,2461.9,0.40621]
[1725199450200,0.00609446,2462.0,2461.9,0.40621]
[1725199450500,0.00609446,2462.0,2461.9,4.0616]
[1725199450799,0.41228446,2462.0,2461.9,4.0616]
[1725199451004,0.00609446,2462.0,2461.9,4.0616]
[1725199452791,0.00609446,2462.0,2461.9,4.46781]
[1725199454001,0.00609446,2462.0,2461.9,4.0616]
[1725199454198,0.00609446,2462.0,2461.7,0.3553]
[1725199455106,0.00609446,2462.0,2461.7,0.76154]
[1725199455503,0.00609446,2462.0,2461.8,0.40622]
[1725199455799,0.00609446,2462.0,2461.5,4.15409446]
[1725199456003,0.40623,2461.8,2461.5,4.15409446]
[1725199456300,0.40626,2461.6,2461.5,0.00609446]
[1725199456606,7.91332593,2461.6,2461.5,0.00609446]
[1725199456901,58.77572593,2461.6,2461.5,0.00609446]
[1725199457200,11.97572593,2461.6,2461.5,0.00609446]
[1725199457705,0.40633,2461.2,2460.8,0.3838]
[1725199458496,0.40635,2461.1,2460.8,0.3838]
[1725199458699,8.55959034,2461.6,2460.8,0.3838]
[1725199459003,1.01582,2461.2,2460.2,7.3558]
[1725199459311,1.05252441,2461.2,2460.3,0.3706]
[1725199459613,4.26032441,2461.6,2461.0,3.2078]
[1725199459909,2.63131102,2461.8,2461.1,0.3706]
[1725199460095,4.62402441,2461.9,2461.1,1.1124]
[1725199460595,5.03023441,2461.9,2461.2,0.40631]
[1725199460910,0.00609446,2462.0,2461.3,3.2078]
[1725199461097,0.00609446,2462.0,2461.6,3.2078]
[1725199461297,0.00609446,2462.0,2461.7,0.3706]
[1725199462014,0.41228446,2462.0,2461.7,0.3706]
[1725199462303,4.40012895,2461.9,2461.2,3.2078]
[1725199462506,4.40012895,2461.9,2461.4,0.3749]
[1725199462696,0.00609446,2462.0,2461.4,0.78118]
[1725199462901,0.00609446,2462.0,2461.5,0.40627]
[1725199463097,0.00609446,2462.0,2461.6,0.40625]
[1725199463293,0.00609446,2462.0,2461.5,7.2702]
[1725199463493,0.00609446,2462.0,2461.5,12.43349974]
[1725199463707,0.00609446,2462.0,2461.7,0.40623]
[1725199464002,0.00609446,2462.0,2461.7,0.40624]
[1725199464203,0.00609446,2462.0,2461.6,4.0624]
[1725199464204,0.00609446,2462.0,2461.8,4.0616]
[1725199464409,0.00609446,2462.0,2461.8,0.40622]
[1725199464602,0.00609446,2462.0,2461.9,4.4365]
[1725199464808,0.00609446,2462.0,2461.9,4.84271]
[1725199465005,0.00609446,2462.0,2461.9,10.84271]
[1725199465208,4.26032441,2462.6,2461.9,10.4365]
[1725199465409,3.2078,2462.6,2462.3,0.40614]
[1725199465607,1.05252441,2462.8,2462.3,0.40614]
[1725199465803,1.05252441,2462.8,2461.9,21.67252669]
[1725199465804,1.05252441,2462.8,2462.2,0.40615]
[1725199466005,1.05252441,2462.8,2462.3,0.40614]
[1725199466308,1.98482661,2462.9,2462.3,0.41223446]
[1725199466309,0.00609446,2462.7,2462.3,0.41223446]
[1725199466895,0.00609446,2462.7,2462.3,4.06689446]
[1725199467096,0.00609446,2462.7,2462.6,0.40609]
[1725199467295,1.05252441,2463.3,2462.8,0.40606]
[1725199467505,1.57878661,2463.5,2462.8,0.40606]
[1725199467506,1.05252441,2463.4,2462.8,0.40606]
[1725199467710,1.45847441,2463.5,2462.8,0.40606]
[1725199467900,4.26167245,2463.4,2462.8,3.2078]
[1725199468103,0.75933,2463.6,2462.9,0.40604]
[1725199468408,0.00609446,2463.5,2462.9,0.385]
[1725199468907,0.00609446,2463.5,2463.0,5.38457666]
[1725199469102,0.40597,2463.4,2462.9,0.385]
[1725199469317,4.59999169,2463.4,2462.9,0.385]
[1725199469505,0.41204446,2463.5,2462.9,0.385]
[1725199469708,0.00609446,2463.5,2462.9,0.385]
[1725199469917,0.41203446,2463.5,2462.9,0.385]
[1725199470106,0.40596,2463.4,2462.9,0.385]
[1725199470300,0.406,2463.2,2462.9,0.385]
[1725199470810,0.40598,2463.3,2462.9,0.385]
[1725199471118,4.34701061,2463.4,2462.9,0.385]
[1725199471119,4.34701061,2463.4,2462.9,0.79103]
[1725199471412,0.41203446,2463.5,2462.9,0.79103]
[1725199471598,0.41203446,2463.5,2462.9,0.385]
[1725199471798,0.00609446,2463.5,2462.9,0.385]
[1725199472015,0.40597,2463.4,2462.9,0.385]
[1725199472204,0.40597,2463.4,2462.3,0.21151075]
[1725199472205,3.2078,2463.1,2462.3,0.00609446]
[1725199472405,0.40604,2463.0,2462.3,0.41222446]
[1725199472706,0.40604,2463.0,2462.4,0.40611]
[1725199472707,4.39708294,2463.0,2462.4,0.40611]
[1725199472908,0.40609,2462.7,2462.3,0.00609446]
[1725199473214,0.76985,2462.9,2462.3,0.41222446]
[1725199473815,0.40607,2462.8,2462.3,0.00609446]
[1725199474115,0.76985,2462.9,2462.3,0.00609446]
[1725199474316,0.76985,2462.9,2462.3,0.41223446]
[1725199474616,0.3638,2462.9,2462.4,0.40612]
[1725199474914,0.76984,2462.9,2462.3,0.41222446]
[1725199475114,3.2078,2463.1,2462.3,0.00609446]
[1725199475306,3.2078,2463.1,2462.4,5.34669688]
[1725199475508,3.61382,2463.1,2462.4,5.75280688]
[1725199475918,3.61382,2463.1,2462.4,8.96060688]
[1725199476104,3.61382,2463.1,2462.5,0.4061]
[1725199476605,3.2078,2463.1,2462.6,0.3886]
[1725199476811,4.56481458,2463.0,2462.3,4.15409446]
[1725199477215,0.40609,2462.6,2462.3,4.15409446]
[1725199477415,0.40609,2462.6,2462.3,0.00609446]
[1725199477613,0.40612,2462.5,2462.3,0.00609446]
[1725199478006,0.40612,2462.4,2462.3,0.00609446]
[1725199482116,4.46692,2462.4,2462.3,0.00609446]
[1725199483217,3.0462,2462.2,2462.1,1.74707]
[1725199483417,3.0462,2462.2,2459.8,2.55e-06]
[1725199483418,3.2078,2461.2,2459.8,2.55e-06]
[1725199483609,3.2078,2461.2,2459.3,3.2078]
[1725199483610,3.2078,2460.3,2459.3,3.2078]
[1725199483811,3.2078,2460.3,2459.1,1.94826]
[1725199483812,0.40655,2459.9,2459.1,1.94826]
[1725199484007,0.40654,2459.9,2459.1,1.5416]
[1725199484212,0.00609446,2459.7,2459.3,0.00609446]
[1725199484426,0.00609446,2459.7,2459.3,4.07169446]
[1725199485217,0.00609446,2459.7,2459.3,0.00609446]
[1725199485415,0.00609446,2459.7,2459.3,4.07169446]
[1725199487219,0.41267446,2459.7,2459.3,0.00609446]
[1725199487412,0.00609446,2459.7,2459.3,4.07169446]
[1725199487614,0.41266446,2459.7,2459.3,0.00609446]
[1725199487917,0.00609446,2459.7,2459.3,0.00609446]
[1725199488220,0.41266446,2459.7,2459.3,0.00609446]
[1725199488620,0.00609446,2459.7,2459.3,0.00609446]
[1725199489020,0.00609446,2459.7,2459.3,0.41272446]
[1725199489218,0.00609446,2459.7,2459.3,0.00609446]
[1725199489825,0.00609446,2459.7,2459.4,9.25275097]
[1725199490016,0.00609446,2459.7,2459.4,9.65935097]
[1725199490218,0.00609446,2459.7,2459.5,4.0656]
[1725199490419,3.2078,2460.0,2459.6,0.40659]
[1725199490817,3.2078,2460.0,2459.6,4.47219]
[1725199491213,3.2078,2460.0,2459.7,0.40657]
[1725199491624,4.163,2460.5,2459.9,0.40654]
[1725199491625,0.00609446,2460.1,2459.9,0.40654]
[1725199491923,0.00609446,2460.1,2459.4,4.148]
[1725199492121,0.00609446,2460.1,2459.8,0.40655]
[1725199492323,0.00609446,2460.1,2459.8,4.47135]
[1725199492724,0.00609446,2460.1,2459.9,4.0648]
[1725199493219,0.00609446,2460.1,2459.9,4.47132]
[1725199493626,0.00609446,2460.1,2459.9,4.0648]
[1725199493923,0.00609446,2460.1,2459.9,4.47134]
[1725199495518,0.00609446,2460.1,2460.0,4.0648]
[1725199496531,0.00609446,2460.1,2460.0,4.47132]
[1725199496835,0.00609446,2460.1,2460.0,4.0648]
[1725199497421,0.00609446,2460.1,2460.0,4.47132]
[1725199498330,0.40641,2460.7,2460.0,13.2726]
[1725199498633,3.2078,2461.2,2460.4,0.40644]
[1725199499019,0.40637,2460.9,2460.4,0.40644]
[1725199499220,0.40636,2461.0,2460.4,0.40644]
[1725199499432,0.00609446,2460.9,2460.5,0.00609446]
[1725199499630,0.00609446,2460.9,2460.8,3.61419]
[1725199499827,0.00609446,2460.9,2460.8,3.2078]
[1725199500019,0.00609446,2460.9,2460.8,7.2718]
[1725199500531,0.00609446,2460.9,2460.8,7.67819]
[1725199500729,0.00609446,2460.9,2460.8,7.2718]
[1725199501033,0.41246446,2460.9,2460.8,3.2078]
[1725199501333,0.00609446,2460.9,2460.8,3.2078]
[1725199501630,0.41246446,2460.9,2460.8,3.2078]
[1725199501826,0.00609446,2460.9,2460.8,3.2078]
[1725199502028,4.47646446,2460.9,2460.8,3.2078]
[1725199502225,0.00609446,2460.9,2460.8,3.2078]
[1725199502628,0.41246446,2460.9,2460.8,3.2078]
[1725199503131,0.00609446,2460.9,2460.8,7.2718]
[1725199503333,0.00609446,2460.9,2460.8,3.2078]
[1725199503923,0.41246446,2460.9,2460.8,3.2078]
[1725199504126,0.40641,2460.7,2460.5,3.21389446]
[1725199504626,4.47042,2460.6,2460.5,0.00609446]
[1725199504832,0.40648,2460.3,2459.8,0.368]
[1725199505230,4.63591351,2460.6,2459.6,3.61438]
[1725199505432,0.40651,2460.1,2459.6,3.2078]
[1725199505635,4.40062586,2460.2,2459.6,3.61438]
[1725199505636,0.4065,2460.2,2459.6,3.61438]
[1725199505832,0.4065,2460.1,2459.7,0.00609446]
[1725199506027,3.2078,2460.5,2459.7,0.00609446]
[1725199506222,1.01606,2460.6,2460.0,3.2078]
[1725199506223,4.35694236,2460.4,2460.0,3.2078]
[1725199506426,0.40645,2460.5,2459.7,3.21389446]
[1725199506628,0.40645,2460.5,2459.9,0.40652]
[1725199506836,0.40643,2460.6,2460.0,3.2078]
[1725199507129,0.40643,2460.6,2459.7,0.00609446]
[1725199507130,0.40644,2460.5,2459.9,0.40652]
[1725199507330,0.40643,2460.6,2460.1,0.4065]
[1725199507925,4.35694236,2460.7,2460.1,3.2078]
[1725199508236,0.40643,2460.6,2459.8,3.5833]
[1725199508433,0.00609446,2460.9,2459.8,3.5833]
[1725199508434,0.40646,2460.4,2459.9,0.40653]
[1725199508937,0.40646,2460.4,2459.8,3.5833]
[1725199509236,0.40645,2460.5,2459.9,0.40653]
[1725199509533,0.40645,2460.5,2459.8,3.5833]
[1725199509534,0.40641,2460.7,2460.1,0.40649]
[1725199509722,7.51974317,2460.8,2460.1,0.40649]
[1725199509723,3.2078,2460.8,2460.1,3.2078]
[1725199509925,0.00609446,2460.9,2460.2,12.49816224]
[1725199510138,0.00609446,2460.9,2460.4,0.40644]
[1725199510330,0.00609446,2460.9,2460.5,3.61424]
[1725199510932,0.00609446,2460.9,2460.8,0.40639]
[1725199511133,0.00609446,2460.9,2460.8,3.61419]
[1725199511338,0.00609446,2460.9,2460.8,7.67819]
[1725199511729,4.5552,2461.8,2461.2,0.40632]
[1725199512047,4.96143,2461.8,2461.2,0.40631]
[1725199512223,0.40624,2461.7,2461.1,3.61413]
[1725199512428,0.4062,2462.0,2461.3,0.40629]
[1725199512622,0.40621,2461.9,2461.3,0.40629]
[1725199512824,0.00609446,2461.8,2461.4,0.00609446]
[1725199513025,0.00609446,2461.8,2461.4,0.41236446]
[1725199513628,0.00609446,2461.8,2461.4,0.00609446]
[1725199513828,0.40626,2461.6,2461.4,0.00609446]
[1725199514528,0.41232446,2461.8,2461.4,0.00609446]
[1725199515232,0.00609446,2461.8,2461.4,3.62017446]
[1725199515731,0.00609446,2461.8,2461.4,0.41237446]
[1725199515932,0.00609446,2461.8,2461.5,0.40627]
[1725199516227,0.00609446,2461.8,2461.7,0.40624]
[1725199516432,0.00609446,2461.8,2461.7,4.0624]
[1725199516735,0.00609446,2461.8,2461.4,0.00609446]
[1725199516937,0.00609446,2461.8,2461.6,3.61405]
[1725199517341,0.00609446,2461.8,2461.7,4.46864]
[1725199517532,0.00609446,2461.8,2461.7,4.84334]
[1725199517732,0.00609446,2461.8,2461.7,5.23414]
[1725199518942,0.00609446,2461.8,2461.7,0.7655]
[1725199519430,0.00609446,2461.8,2461.4,0.00609446]
[1725199519834,0.41233446,2461.8,2461.4,0.00609446]
[1725199520040,0.00609446,2461.8,2461.6,0.40625]
[1725199520243,0.00609446,2461.8,2461.7,0.40624]
[1725199520538,0.00609446,2461.8,2461.6,3.61405]
[1725199521238,0.00609446,2461.8,2461.7,0.40624]
[1725199521440,0.00609446,2461.8,2461.7,1.12884]
[1725199521643,0.00609446,2461.8,2461.7,5.19124]
[1725199522040,0.00609446,2461.8,2461.6,3.2078]
[1725199522247,0.00609446,2461.8,2461.7,0.40624]
[1725199522538,4.25598526,2463.0,2462.5,0.4061]
[1725199522746,0.406,2463.2,2462.5,0.4061]
[1725199522934,0.406,2463.2,2462.5,0.40611]
[1725199523129,4.67294978,2463.1,2462.5,0.78741]
[1725199523339,0.40603,2463.0,2462.5,0.3813]
[1725199523536,3.21389446,2463.0,2462.5,0.00609446]
[1725199523835,0.40609,2462.6,2462.5,0.00609446]
[1725199524233,4.46689,2462.6,2462.5,0.00609446]
[1725199524932,0.40609,2462.6,2462.5,0.00609446]
[1725199525138,4.22899446,2463.0,2462.5,0.00609446]
[1725199525333,0.40606,2462.8,2462.5,0.00609446]
[1725199526043,4.72831405,2462.9,2462.5,0.00609446]
[1725199526239,0.40609,2462.6,2462.5,0.00609446]
[1725199527035,4.46689,2462.6,2462.5,0.00609446]
[1725199527934,10.46689,2462.6,2462.5,0.00609446]
[1725199528231,14.72984153,2462.6,2462.5,0.00609446]
[1725199528742,0.40609,2462.6,2462.5,0.00609446]
[1725199528942,3.2078,2462.7,2462.5,0.00609446]
[1725199530432,4.73683469,2462.6,2462.5,0.00609446]